Workbook

Sheet Výpočetní program
B2: PROGRAM PRO STANOVENÍ STŘEDNÍ AERODYNAMICKÉ TĚTIVY KŘÍDLA OBECNÉHO PŮDORYSU
C5: Definujte typ křídla | F5: lichoběžník | H5: Zadejte půdorysný tvar vašeho křídla. V případě složeného křídla z více částí program předpokládá, že se "typ křídla" (jeho geometrické řazení) nemění. Předpokládá se pravoúhlý trojúhelník = delta křídlo)
H6: Možné vstupy: obdélník, lichoběžník, trojúhelník, elipsa
C8: Zadejte počet částí křídla P | F8: 2 | H8: Křídlo je buď jednoduché (neměnná geom.) nebo složené (proměnná geom.). Složené křídlo je nutné rozdělit na více jednoduchých subkřídel v místech, kde se geometrie mění viz. obrázek.
H9: Možné vstupy (počet subkřídel): 1, 2, 3 ,4
C11: Zadejte parametry křídla :
C13: Rozpětí 𝑙 | F13: 340 | H13: Změňte hodnotu 0 na vaši hodnotu.
C15: Hloubka u kořene křídla 𝑏0 | F15: 150 | H15: Změňte hodnotu 0 na vaši hodnotu.
C16: Hloubka subkřídla 𝑏1 | F16: 129.12 | H16: Změňte hodnotu 0 na vaši hodnotu. | K16: (zajedte 1E-30)
C17: Hloubka subkřídla 𝑏2 | F17: 1e-30 | H17: Změňte hodnotu 0 na vaši hodnotu.
C18: Hloubka subkřídla 𝑏3 | F18: 0 | H18: Změňte hodnotu 0 na vaši hodnotu.
C19: Hloubka subkřídla 𝑏4 | F19: 0 | H19: Změňte hodnotu 0 na vaši hodnotu.
C21: Šípovitost -> vzdálenost nb1 | F21: 50 | H21: Změňte hodnotu 0 na vaši hodnotu. | K21: (je rovna b0)
C22: Šípovitost -> vzdálenost nb2 | F22: 240 | H22: Změňte hodnotu 0 na vaši hodnotu.
C23: Šípovitost -> vzdálenost nb3 | F23: 0 | H23: Změňte hodnotu 0 na vaši hodnotu.
C24: Šípovitost -> vzdálenost nb4 | F24: 0 | H24: Změňte hodnotu 0 na vaši hodnotu.
C26: Šípovitost -> vzdálenost zb1 | F26: 55 | H26: Změňte hodnotu 0 na vaši hodnotu. | K26: (je rovna l/2)
C27: Šípovitost -> vzdálenost zb2 | F27: 170 | H27: Změňte hodnotu 0 na vaši hodnotu.
C28: Šípovitost -> vzdálenost zb3 | F28: 0 | H28: Změňte hodnotu 0 na vaši hodnotu.
C29: Šípovitost -> vzdálenost zb4 | F29: 0 | H29: Změňte hodnotu 0 na vaši hodnotu.
C31: Vypočtená hodnota ploch subkřídel :
C33: Plocha křídla S1 | F33: =O42 -> 7675.8 | H33: Plocha křídla a plochy jeho částí pro kontrolu. viz. obrázek.
C34: Plocha křídla S2 | F34: =O43 -> 7424.4
C35: Plocha křídla S3 | F35: =O44 -> 0
C36: Plocha křídla S4 | F36: =O45 -> 0
C37: Plocha křídla S (celková) | F37: =_xlfn.IFS(F5="elipsa",PI()/4*F15*F13,SUM(F33:F36),SUM(F33:F36)) -> 15100.2
C39: VÝSLEDNÉ HODNOTY DEFINUJÍCÍ STŘEDNÍ AERODYNAMICKOU TĚTIVU
C41: Střední aerodynamická hloubka | F41: =_xlfn.IFS(F5="elipsa",8/(3*PI())*F15,(J42*F33+J43*F34+J44*F35+J45*F36)/(F33+F34+F35+F36),(J42*F33+J43*F34+J44*F35+J45*F36)/(F33+F34+F35+F36)) -> 113.397519 | H41: Pole | I41: zúžení^-1 | J41: bSAT | K41: zSAT | L41: xSAT | M41: zSAT gl. | N41: xSAT gl. | O41: Plocha
C42: Poloha SAT na rozpětí | F42: =_xlfn.IFS(F5="elipsa",0.4244*F13/2,(M42*F33+M43*F34+M44*F35+M45*F36)/(F33+F34+F35+F36),(M42*F33+M43*F34+M44*F35+M45*F36)/(F33+F34+F35+F36)) -> 59.52007258 | H42: 1 | I42: =IFERROR(F16/F15,0) -> 0.8608 | J42: =_xlfn.IFS(I42=0,0,(2/3)*F15*((1+I42+I42^2)/(1+I42)),(2/3)*F15*((1+I42+I42^2)/(1+I42))) -> 139.8203267 | K42: =_xlfn.IFS(I42=0,0,(2*F26)/6*(1+2*I42)/(1+I42),(2*F26)/6*(1+2*I42)/(1+I42)) -> 26.81427343 | L42: =IFERROR(K42/F26*F21,0) -> 24.37661221 | M42: =_xlfn.IFS(K42=0,0,K42,K42) -> 26.81427343 | N42: =_xlfn.IFS(L42=0,0,L42,L42) -> 24.37661221 | O42: =IFERROR(_xlfn.IFS(IFERROR(F15*(F26-F25)+((F16-F15)/2)*(F26-F25),0)<0,0),IFERROR(F15*(F26-F25)+((F16-F15)/2)*(F26-F25),0)) -> 7675.8
C43: Vzdálenost náběžné hrany | F43: =_xlfn.IFS(F5="elipsa","viz. Obr.1",F5="obdélník",0,(N42*F33+N43*F34+N44*F35+N45*F36)/(F33+F34+F35+F36),(N42*F33+N43*F34+N44*F35+N45*F36)/(F33+F34+F35+F36)) -> 68.11446206 | H43: 2 | I43: =IFERROR(F17/F16,0) -> 7.744733581e-33 | J43: =_xlfn.IFS(I43=0,0,(2/3)*F16*((1+I43+I43^2)/(1+I43)),(2/3)*F16*((1+I43+I43^2)/(1+I43))) -> 86.08 | K43: =_xlfn.IFS(I43=0,0,(2*F27-2*F26)/6*(1+2*I43)/(1+I43),(2*F27-2*F26)/6*(1+2*I43)/(1+I43)) -> 38.33333333 | L43: =IFERROR(K43/(F27-F26)*(F22-F21),0) -> 63.33333333 | M43: =_xlfn.IFS(K43=0,0,K43+F26,K43+F26) -> 93.33333333 | N43: =_xlfn.IFS(L43=0,0,L43+F21,L43+F21) -> 113.3333333 | O43: =IFERROR(_xlfn.IFS(IFERROR(F16*(F27-F26)+((F17-F16)/2)*(F27-F26),0)<0,0),IFERROR(F16*(F27-F26)+((F17-F16)/2)*(F27-F26),0)) -> 7424.4
H44: 3 | I44: =IFERROR(F18/F17,0) -> 0 | J44: =_xlfn.IFS(I44=0,0,(2/3)*F17*((1+I44+I44^2)/(1+I44)),(2/3)*F17*((1+I44+I44^2)/(1+I44))) -> 0 | K44: =_xlfn.IFS(I44=0,0,(2*F28-2*F27)/6*(1+2*I44)/(1+I44),(2*F28-2*F27)/6*(1+2*I44)/(1+I44)) -> 0 | L44: =IFERROR(K44/(F28-F27)*(F23-F22),0) -> 0 | M44: =_xlfn.IFS(K44=0,0,K44+F27,K44+F27) -> 0 | N44: =_xlfn.IFS(L44=0,0,L44+F22,L44+F22) -> 0 | O44: =IFERROR(_xlfn.IFS(IFERROR(F17*(F28-F27)+((F18-F17)/2)*(F28-F27),0)<0,0),IFERROR(F17*(F28-F27)+((F18-F17)/2)*(F28-F27),0)) -> 0
C45: Zobrazit mezivýpočty? (zadejte "ano") | F45: ano | H45: 4 | I45: =IFERROR(F19/F18,0) -> 0 | J45: =_xlfn.IFS(I45=0,0,(2/3)*F18*((1+I45+I45^2)/(1+I45)),(2/3)*F18*((1+I45+I45^2)/(1+I45))) -> 0 | K45: =_xlfn.IFS(I45=0,0,(2*F29-2*F28)/6*(1+2*I45)/(1+I45),(2*F29-2*F28)/6*(1+2*I45)/(1+I45)) -> 0 | L45: =IFERROR(K45/(F29-F28)*(F24-F23),0) -> 0 | M45: =_xlfn.IFS(K45=0,0,K45+F28,K45+F28) -> 0 | N45: =_xlfn.IFS(L45=0,0,L45+F23,L45+F23) -> 0 | O45: =IFERROR(_xlfn.IFS(IFERROR(F18*(F29-F28)+((F19-F18)/2)*(F29-F28),0)<0,0),IFERROR(F18*(F29-F28)+((F19-F18)/2)*(F29-F28),0)) -> 0
C46: (nezobrazuje pro elipsu)

Sheet Obecná metoda
B2: PROGRAM PRO STANOVENÍ STŘEDNÍ AERODYNAMICKÉ TĚTIVY KŘÍDLA OBECNÉHO PŮDORYSU
C5: SOUŘADNICE KŘÍDLA | G5: PLOŠNÉ ROZDĚLENÍ | J5: MEZIVÝPOČET
C6: z | D6: x1 | E6: x2 | G6: z | H6: x=x1-x2 | J6: Hloubka b(x) | K6: chyba
C7: 0 | D7: 0 | E7: 150 | G7: =IF(COUNT(C7)=1,C7,#N/A) -> 0 | H7: =IF(COUNT(D7:E7)=2,ABS(D7-E7),#N/A) -> 150 | J7: =5.69046027653288E-11*G7^6 - 3.49697955151539E-08*G7^5 + 8.15900041971351E-06*G7^4 - 0.000866778446532379*G7^3 + 0.0355520817989827*G7^2 - 0.837734671605176*G7 + 150.584619638912 -> 150.5846196 | K7: =IFERROR(ABS((H7-J7)/J7),"") -> 0.003882333005 | M7: KONTROLA POUŽITÉ REGRESE | S7: 0,000000000056904602765328800000*G7^6 - 0,000000034969795515153900000000*G7^5 + 0,000008159000419713510000000000*G7^4 - 0,000866778446532379000000000000*G7^3 + 0,035552081798982700000000000000*G7^2 - 0,837734671605176000000000000000*G7 + 150,584619638912000000000000000000
C8: 9.166666667 | D8: 8.333333333 | E8: 154.8529412 | G8: =IF(COUNT(C8)=1,C8,#N/A) -> 9.166666667 | H8: =IF(COUNT(D8:E8)=2,ABS(D8-E8),#N/A) -> 146.5196078 | J8: =5.69046027653288E-11*G8^6 - 3.49697955151539E-08*G8^5 + 8.15900041971351E-06*G8^4 - 0.000866778446532379*G8^3 + 0.0355520817989827*G8^2 - 0.837734671605176*G8 + 150.584619638912 -> 145.2804859 | K8: =IFERROR(ABS((H8-J8)/J8),"") -> 0.008529170052
C9: 18.33333333 | D9: 16.66666667 | E9: 159.7058824 | G9: 18.33333333 | H9: 143.0392157 | J9: 142.685941 | K9: 0.002475889603 | M9: Do bílého pole zadejte maximální procentuální chybu regrese, kterou jste ochotni připustit.
C10: 27.5 | D10: 25 | E10: 164.5588235 | G10: 27.5 | H10: 139.5588235 | J10: 140.5477617 | K10: 0.007036313707
C11: 36.66666667 | D11: 33.33333333 | E11: 169.4117647 | G11: 36.66666667 | H11: 136.0784314 | J11: 137.504781 | K11: 0.01037309126
C12: 45.83333333 | D12: 41.66666667 | E12: 174.2647059 | G12: 45.83333333 | H12: 132.5980392 | J12: 132.8770579 | K12: 0.002099825935 | M12: Tolerovaná hodnota chyby | O12: 0.0001
C13: 55 | D13: 50 | E13: 179.1176471 | G13: 55 | H13: 129.1176471 | J13: 126.4793535 | K13: 0.02085948015 | M13: Maximální dosažená chyba | O13: =MAX(K7:K2007) -> 1
C14: 64.16666667 | D14: 65.14492754 | E14: 183.9705882 | G14: 64.16666667 | H14: 118.8256607 | J14: 118.458916 | K14: 0.003095965737
C15: 73.33333333 | D15: 80.28985507 | E15: 188.8235294 | G15: 73.33333333 | H15: 108.5336743 | J15: 109.1575732 | K15: 0.005715579892 | M15: =_xlfn.IFS(O13<O12,"Použili jste vhodnou regresi, výpočet dosahuje maximálně vámi tolerovanou chybu.",O13>O12,"Nepřesný výsledek. Změňte řád polynomu regrese nebo vytvořte hustší síť souřadnic definujících profil křídla.",O13=O12,"Použili jste vhodnou regresi, výpočet dosahuje maximálně vámi tolerovanou chybu.") -> Nepřesný výsledek. Změňte řád polynomu regrese nebo vytvořte hustší síť souřadnic definujících profil křídla.
C16: 82.5 | D16: 95.43478261 | E16: 193.6764706 | G16: 82.5 | H16: 98.24168798 | J16: 98.99813338 | K16: 0.00764100668
C17: 91.66666667 | D17: 110.5797101 | E17: 198.5294118 | G17: 91.66666667 | H17: 87.94970162 | J17: 88.39509376 | K17: 0.005038652317
C18: 100.8333333 | D18: 125.7246377 | E18: 203.3823529 | G18: 100.8333333 | H18: 77.65771526 | J18: 77.68965702 | K18: 0.0004111456038
C19: 110 | D19: 140.8695652 | E19: 208.2352941 | G19: 110 | H19: 67.3657289 | J19: 67.10905587 | K19: 0.003824715201
C20: 119.1666667 | D20: 156.0144928 | E20: 213.0882353 | G20: 119.1666667 | H20: 57.07374254 | J20: 56.75018556 | K20: 0.005701425933 | M20: VÝPOČET STŘEDNÍ AERODYNAMICKÉ HLOUBKY bSAT
C21: 128.3333333 | D21: 171.1594203 | E21: 217.9411765 | G21: 128.3333333 | H21: 46.78175618 | J21: 46.58754427 | K21: 0.004168751745
C22: 137.5 | D22: 186.3043478 | E22: 222.7941176 | G22: 137.5 | H22: 36.48976982 | J22: 36.50548157 | K22: 0.0004303941597
C23: 146.6666667 | D23: 201.4492754 | E23: 227.6470588 | G23: 146.6666667 | H23: 26.19778346 | J23: 26.35475472 | K23: 0.005956088612
C24: 155.8333333 | D24: 216.5942029 | E24: 232.5 | G24: 155.8333333 | H24: 15.9057971 | J24: 16.03339305 | K24: 0.007958137363
C25: 160.3333333 | D25: 224.0289855 | E25: 234.8823529 | G25: 160.3333333 | H25: 10.85336743 | J25: 10.91020912 | K25: 0.005209953611
C26: 165 | D26: 231.7391304 | E26: 237.3529412 | G26: 165 | H26: 5.613810742 | J26: 5.591870218 | K26: 0.003923646803 | O26: =5.69046027653288E-11*Z1^6 - 3.49697955151539E-08*Z1^5 + 8.15900041971351E-06*Z1^4 - 0.000866778446532379*Z1^3 + 0.0355520817989827*Z1^2 - 0.837734671605176*Z1 + 150.584619638912 -> 150.5846196 | S26: 0,000000000056904602765328800000*z1^6 - 0,000000034969795515153900000000*z1^5 + 0,000008159000419713510000000000*z1^4 - 0,000866778446532379000000000000*z1^3 + 0,035552081798982700000000000000*z1^2 - 0,837734671605176000000000000000*z1 + 150,584619638912000000000000000000
C27: 167.5 | D27: 235.8695652 | E27: 238.6764706 | G27: 167.5 | H27: 2.806905371 | J27: 2.757995107 | K27: 0.01773399224
C28: 170 | D28: 240 | E28: =240 -> 240 | G28: 170 | H28: 0 | J28: -0.0509972183 | K28: 1 | O28: =-5.69046027746462E-11*Z1^6 + 3.49697955193823E-08*Z1^5 - 8.15900042105966E-06*Z1^4 + 0.000866778447203842*Z1^3 - 0.0355520819020967*Z1^2 + 1.36714643651794*Z1 - 0.584619091707282 -> -0.5846190917 | S28: -0,000000000056904602774646200000*z1^6 + 0,000000034969795519382300000000*z1^5 - 0,000008159000421059660000000000*z1^4 + 0,000866778447203842000000000000*z1^3 - 0,035552081902096700000000000000*z1^2 + 1,367146436517940000000000000000*z1 - 0,584619091707282000000000000000
S29: -0,000000000056904602774646200000*G7^6 + 0,000000034969795519382300000000*G7^5 - 0,000008159000421059660000000000*G7^4 + 0,000866778447203842000000000000*G7^3 - 0,035552081902096700000000000000*G7^2 + 1,367146436517940000000000000000*G7 - 0,584619091707282000000000000000
L30: NEMÁTE K DISPOZICI FUNKCI QADF(), PŘEJDĚTE NA LIST "INTEGRACE".
M32: Horní mez integrálů (= polovině rozpětí) | O32: =MAX(C7:C121) -> 170
M33: Plocha křídla (získaná integrací b(z)) | O33: =QUADF(O26,Z1,0,O32) -> 
M35: Střední aerodynamická hloubka | O35: =IFERROR(2/O33*O41/2, "list Integrace") -> list Integrace
M36: Poloha SAT na rozpětí | O36: =IFERROR(2/O33*O42/2,"list Integrace") -> list Integrace
M37: Vzdálenost náběžné hrany | O37: =IFERROR(2/O33*O43/2,"list Integrace") -> list Integrace
M39: Zobrazit mezivýpočty? (vepište "ano") | O39: ano
M41: Integrál z b(z)^2 | O41: =QUADF(O26^2,Z1,0,O32) -> 
M42: Integrál z b(z)*z | O42: =QUADF(O26*Z1,Z1,0,O32) -> 
M43: Integrál z b(z)*x(z) | O43: =QUADF(O26*O28,Z1,0,O32) -> 
G72: =IF(COUNT(C72)=1,C72,#N/A) ->  | H72: =IF(COUNT(D72:E72)=2,ABS(D72-E72),#N/A) -> 
K73: =IFERROR(ABS((H73-J73)/J73),"") -> 
G136: =IF(COUNT(C136)=1,C136,#N/A) ->  | H136: =IF(COUNT(D136:E136)=2,ABS(D136-E136),#N/A) -> 
K137: =IFERROR(ABS((H137-J137)/J137),"") -> 
G200: =IF(COUNT(C200)=1,C200,#N/A) ->  | H200: =IF(COUNT(D200:E200)=2,ABS(D200-E200),#N/A) -> 
K201: =IFERROR(ABS((H201-J201)/J201),"") -> 
G264: =IF(COUNT(C264)=1,C264,#N/A) ->  | H264: =IF(COUNT(D264:E264)=2,ABS(D264-E264),#N/A) -> 
K265: =IFERROR(ABS((H265-J265)/J265),"") -> 
G328: =IF(COUNT(C328)=1,C328,#N/A) ->  | H328: =IF(COUNT(D328:E328)=2,ABS(D328-E328),#N/A) -> 
K329: =IFERROR(ABS((H329-J329)/J329),"") -> 
G392: =IF(COUNT(C392)=1,C392,#N/A) ->  | H392: =IF(COUNT(D392:E392)=2,ABS(D392-E392),#N/A) -> 
K393: =IFERROR(ABS((H393-J393)/J393),"") -> 
G456: =IF(COUNT(C456)=1,C456,#N/A) ->  | H456: =IF(COUNT(D456:E456)=2,ABS(D456-E456),#N/A) -> 
K457: =IFERROR(ABS((H457-J457)/J457),"") -> 
G520: =IF(COUNT(C520)=1,C520,#N/A) ->  | H520: =IF(COUNT(D520:E520)=2,ABS(D520-E520),#N/A) -> 
K521: =IFERROR(ABS((H521-J521)/J521),"") -> 
G584: =IF(COUNT(C584)=1,C584,#N/A) ->  | H584: =IF(COUNT(D584:E584)=2,ABS(D584-E584),#N/A) -> 
K585: =IFERROR(ABS((H585-J585)/J585),"") -> 
G648: =IF(COUNT(C648)=1,C648,#N/A) ->  | H648: =IF(COUNT(D648:E648)=2,ABS(D648-E648),#N/A) -> 
K649: =IFERROR(ABS((H649-J649)/J649),"") -> 
G712: =IF(COUNT(C712)=1,C712,#N/A) ->  | H712: =IF(COUNT(D712:E712)=2,ABS(D712-E712),#N/A) -> 
K713: =IFERROR(ABS((H713-J713)/J713),"") -> 
G776: =IF(COUNT(C776)=1,C776,#N/A) ->  | H776: =IF(COUNT(D776:E776)=2,ABS(D776-E776),#N/A) -> 
K777: =IFERROR(ABS((H777-J777)/J777),"") -> 
G840: =IF(COUNT(C840)=1,C840,#N/A) ->  | H840: =IF(COUNT(D840:E840)=2,ABS(D840-E840),#N/A) -> 
K841: =IFERROR(ABS((H841-J841)/J841),"") -> 
G904: =IF(COUNT(C904)=1,C904,#N/A) ->  | H904: =IF(COUNT(D904:E904)=2,ABS(D904-E904),#N/A) -> 
K905: =IFERROR(ABS((H905-J905)/J905),"") -> 
G968: =IF(COUNT(C968)=1,C968,#N/A) ->  | H968: =IF(COUNT(D968:E968)=2,ABS(D968-E968),#N/A) -> 
K969: =IFERROR(ABS((H969-J969)/J969),"") -> 
G1032: =IF(COUNT(C1032)=1,C1032,#N/A) ->  | H1032: =IF(COUNT(D1032:E1032)=2,ABS(D1032-E1032),#N/A) -> 
K1033: =IFERROR(ABS((H1033-J1033)/J1033),"") -> 
G1096: =IF(COUNT(C1096)=1,C1096,#N/A) ->  | H1096: =IF(COUNT(D1096:E1096)=2,ABS(D1096-E1096),#N/A) -> 
K1097: =IFERROR(ABS((H1097-J1097)/J1097),"") -> 
G1160: =IF(COUNT(C1160)=1,C1160,#N/A) ->  | H1160: =IF(COUNT(D1160:E1160)=2,ABS(D1160-E1160),#N/A) -> 
K1161: =IFERROR(ABS((H1161-J1161)/J1161),"") -> 
G1224: =IF(COUNT(C1224)=1,C1224,#N/A) ->  | H1224: =IF(COUNT(D1224:E1224)=2,ABS(D1224-E1224),#N/A) -> 
K1225: =IFERROR(ABS((H1225-J1225)/J1225),"") -> 
G1288: =IF(COUNT(C1288)=1,C1288,#N/A) ->  | H1288: =IF(COUNT(D1288:E1288)=2,ABS(D1288-E1288),#N/A) -> 
K1289: =IFERROR(ABS((H1289-J1289)/J1289),"") -> 
G1352: =IF(COUNT(C1352)=1,C1352,#N/A) ->  | H1352: =IF(COUNT(D1352:E1352)=2,ABS(D1352-E1352),#N/A) -> 
K1353: =IFERROR(ABS((H1353-J1353)/J1353),"") -> 
G1416: =IF(COUNT(C1416)=1,C1416,#N/A) ->  | H1416: =IF(COUNT(D1416:E1416)=2,ABS(D1416-E1416),#N/A) -> 
K1417: =IFERROR(ABS((H1417-J1417)/J1417),"") -> 
G1480: =IF(COUNT(C1480)=1,C1480,#N/A) ->  | H1480: =IF(COUNT(D1480:E1480)=2,ABS(D1480-E1480),#N/A) -> 
K1481: =IFERROR(ABS((H1481-J1481)/J1481),"") -> 
G1544: =IF(COUNT(C1544)=1,C1544,#N/A) ->  | H1544: =IF(COUNT(D1544:E1544)=2,ABS(D1544-E1544),#N/A) -> 
K1545: =IFERROR(ABS((H1545-J1545)/J1545),"") -> 
G1608: =IF(COUNT(C1608)=1,C1608,#N/A) ->  | H1608: =IF(COUNT(D1608:E1608)=2,ABS(D1608-E1608),#N/A) -> 
K1609: =IFERROR(ABS((H1609-J1609)/J1609),"") -> 
G1672: =IF(COUNT(C1672)=1,C1672,#N/A) ->  | H1672: =IF(COUNT(D1672:E1672)=2,ABS(D1672-E1672),#N/A) -> 
K1673: =IFERROR(ABS((H1673-J1673)/J1673),"") -> 
G1736: =IF(COUNT(C1736)=1,C1736,#N/A) ->  | H1736: =IF(COUNT(D1736:E1736)=2,ABS(D1736-E1736),#N/A) -> 
K1737: =IFERROR(ABS((H1737-J1737)/J1737),"") -> 
G1800: =IF(COUNT(C1800)=1,C1800,#N/A) ->  | H1800: =IF(COUNT(D1800:E1800)=2,ABS(D1800-E1800),#N/A) -> 
K1801: =IFERROR(ABS((H1801-J1801)/J1801),"") -> 
G1864: =IF(COUNT(C1864)=1,C1864,#N/A) ->  | H1864: =IF(COUNT(D1864:E1864)=2,ABS(D1864-E1864),#N/A) -> 
K1865: =IFERROR(ABS((H1865-J1865)/J1865),"") -> 
G1928: =IF(COUNT(C1928)=1,C1928,#N/A) ->  | H1928: =IF(COUNT(D1928:E1928)=2,ABS(D1928-E1928),#N/A) -> 
K1929: =IFERROR(ABS((H1929-J1929)/J1929),"") -> 
G1992: =IF(COUNT(C1992)=1,C1992,#N/A) ->  | H1992: =IF(COUNT(D1992:E1992)=2,ABS(D1992-E1992),#N/A) -> 
K1993: =IFERROR(ABS((H1993-J1993)/J1993),"") -> 

Sheet Integrace
B2: ALTERNATIVNÍ VÝPOČET INTEGRÁLŮ PRO ZÍSKÁNÍ STŘEDNÍ AERODYNAMICKÉ TĚTIVY
G4: dz | H4: b(z) | I4: b(z)^2 | J4: b(z)*z | K4: x(z) | L4: b(z)*x(z) | M4: nosná plocha | N4: bsat' | O4: zsat' | P4: xsat'
G5: 1 | R5: VÝSLEDNÉ HODNOTY
G7: 0 | H7: =5.69046027653288E-11*G7^6 - 3.49697955151539E-08*G7^5 + 8.15900041971351E-06*G7^4 - 0.000866778446532379*G7^3 + 0.0355520817989827*G7^2 - 0.837734671605176*G7 + 150.584619638912 -> 150.5846196 | I7: =H7^2 -> 22675.72767 | J7: =H7*G7 -> 0 | K7: =-5.69046027746462E-11*G7^6 + 3.49697955193823E-08*G7^5 - 8.15900042105966E-06*G7^4 + 0.000866778447203842*G7^3 - 0.0355520819020967*G7^2 + 1.36714643651794*G7 - 0.584619091707282 -> -0.5846190917 | L7: =H7*K7 -> -88.03464356 | M7: 0 | N7: 0 | O7: 0 | P7: 0 | R7: Střední aerodynamická hloubka | T7: =2/MAX(M7:M2007)*(MAX(N7:N2007)-N7)/2 -> 113.3637058
G8: =G7+G$5 -> 1 | H8: =5.69046027653288E-11*G8^6 - 3.49697955151539E-08*G8^5 + 8.15900041971351E-06*G8^4 - 0.000866778446532379*G8^3 + 0.0355520817989827*G8^2 - 0.837734671605176*G8 + 150.584619638912 -> 149.7815784 | I8: =H8^2 -> 22434.52123 | J8: =H8*G8 -> 149.7815784 | K8: =-5.69046027746462E-11*G8^6 + 3.49697955193823E-08*G8^5 - 8.15900042105966E-06*G8^4 + 0.000866778447203842*G8^3 - 0.0355520819020967*G8^2 + 1.36714643651794*G8 - 0.584619091707282 -> 0.7478339173 | L8: =H8*K8 -> 112.0117445 | M8: =M7+0.5*(H8+H7)*G$5 -> 150.183099 | N8: =N7+0.5*(I8+I7)*G$5 -> 22555.12445 | O8: =O7+0.5*(J8+J7)*G$5 -> 74.8907892 | P8: =P7+0.5*(L8+L7)*G$5 -> 11.98855047 | R8: Poloha SAT na rozpětí | T8: =2/MAX(M7:M2007)*(MAX(O7:O2007)-O7)/2 -> 59.54265606
G9: =G8+G$5 -> 2 | H9: 149.0445538 | I9: 22214.27902 | J9: 298.0891076 | K9: 2.014270253 | L9: 300.2160111 | M9: =M8+0.5*(H9+H8)*G$5 -> 299.5961651 | N9: =N8+0.5*(I9+I8)*G$5 -> 44879.52457 | O9: =O8+0.5*(J9+J8)*G$5 -> 298.8261322 | P9: =P8+0.5*(L9+L8)*G$5 -> 218.1024283 | R9: Vzdálenost náběžné hrany | T9: =2/MAX(M7:M2007)*(MAX(P7:P2007)-P7)/2 -> 68.15887718
G10: 3 | H10: 148.3686338 | I10: 22013.25149 | J10: 445.1059013 | K10: 3.219602076 | L10: 477.6879613 | M10: 448.3027589 | N10: 66993.28983 | O10: 670.4236367 | P10: 607.0544145
G11: 4 | H11: 147.7490936 | I11: 21829.79465 | J11: 590.9963743 | K11: 4.368554036 | L11: 645.4498991 | M11: 596.3616226 | N11: 88914.8129 | O11: 1188.474774 | P11: 1168.623345
G12: 5 | H12: 147.181392 | I12: 21662.36215 | J12: 735.90696 | K12: 5.465667365 | L12: 804.4445311 | M12: 743.8268654 | N12: 110660.8913 | O12: 1851.926442 | P12: 1893.57056
G13: 6 | H13: 146.6611672 | I13: 21509.49797 | J13: 879.9670032 | K13: 6.515303929 | L13: 955.5420789 | M13: 890.748145 | N13: 132246.8214 | O13: 2659.863423 | P13: 2773.563865
G14: 7 | H14: 146.1842327 | I14: 21369.82988 | J14: 1023.289629 | K14: 7.521650241 | L14: 1099.546669 | M14: 1037.170845 | N14: 153686.4853 | O14: 3611.491739 | P14: 3801.108239 | AE14: F(z)
G15: 8 | H15: 145.7465732 | I15: 21242.06361 | J15: 1165.972586 | K15: 8.488721431 | L15: 1237.20206 | M15: 1183.136248 | N15: 174992.432 | O15: 4706.122846 | P15: 4969.482603
G16: 9 | H16: 145.3443412 | I16: 21124.97753 | J16: 1308.099071 | K16: 9.420365179 | L16: 1369.196771 | M16: 1328.681705 | N16: 196175.9526 | O16: 5943.158675 | P16: 6272.682018 | AE16: F(0)
G17: 10 | H17: 144.9738526 | I17: 21017.41793 | J17: 1449.738526 | K17: 10.3202656 | L17: 1496.168664 | M17: 1473.840802 | N17: 217247.1503 | O17: 7322.077473 | P17: 7705.364736 | AE17: F(0)+0,5*(f(0)+F(0))*k
G18: 11 | H18: 144.6315829 | I18: 20918.29476 | J18: 1590.947411 | K18: 11.1919471 | L18: 1618.709024 | M18: 1618.64352 | N18: 238215.0067 | O18: 8842.420442 | P18: 9262.80358
G19: 12 | H19: 144.3141635 | I19: 20826.5778 | J19: 1731.769963 | K19: 12.03877816 | L19: 1737.366201 | M19: 1763.116393 | N19: 259087.4429 | O19: 10503.77913 | P19: 10940.84119
G20: 13 | H20: 144.0183783 | I20: 20741.29329 | J20: 1872.238918 | K20: 12.86397515 | L20: 1852.64884 | M20: 1907.282664 | N20: 279871.3785 | O20: 12305.78357 | P20: 12735.84871
G21: 14 | H21: 143.7411592 | I21: 20661.52086 | J21: 2012.376229 | K21: 13.670606 | L21: 1965.028753 | M21: 2051.162433 | N21: 300572.7856 | O21: 14248.09114 | P21: 14644.68751
G22: 15 | H22: 143.4795831 | I22: 20586.39077 | J22: 2152.193746 | K22: 14.4615939 | L22: 2074.943464 | M22: 2194.772804 | N22: 321196.7414 | O22: 16330.37613 | P22: 16664.67362
G23: 16 | H23: 143.2308678 | I23: 20515.08149 | J23: 2291.693884 | K23: 15.23972098 | L23: 2182.798461 | M23: 2338.128029 | N23: 341747.4775 | O23: 18552.31995 | P23: 18793.54458
G24: 17 | H24: 142.9923687 | I24: 20446.81749 | J24: 2430.870267 | K24: 16.00763187 | L24: 2288.969197 | M24: 2481.239647 | N24: 362228.427 | O24: 20913.60202 | P24: 21029.42841
G25: 18 | H25: 142.761575 | I25: 20380.8673 | J25: 2569.70835 | K25: 16.76783726 | L25: 2393.802857 | M25: 2624.116619 | N25: 382642.2694 | O25: 23413.89133 | P25: 23370.81444
G26: 19 | H26: 142.5361066 | I26: 20316.54168 | J26: 2708.186025 | K26: 17.52271746 | L26: 2497.619924 | M26: 2766.76546 | N26: 402990.9739 | O26: 26052.83852 | P26: 25816.52583
G27: 20 | H27: 142.31371 | I27: 20253.19205 | J27: 2846.274199 | K27: 18.27452584 | L27: 2600.71557 | M27: 2909.190368 | N27: 423275.8408 | O27: 28830.06863 | P27: 28365.69357
G28: 21 | H28: 142.0922553 | I28: 20190.20901 | J28: 2983.937361 | K28: 19.02539228 | L28: 2703.360897 | M28: 3051.393351 | N28: 443497.5413 | O28: 31745.17441 | P28: 31017.73181
G29: 22 | H29: 141.8697327 | I29: 20127.02107 | J29: 3121.13412 | K29: 19.77732659 | L29: 2805.804038 | M29: 3193.374345 | N29: 463656.1563 | O29: 34797.71015 | P29: 33772.31428
G30: 23 | H30: 141.6442493 | I30: 20063.09335 | J30: 3257.817733 | K30: 20.53222183 | L30: 2908.271147 | M30: 3335.131336 | N30: 483751.2135 | O30: 37987.18608 | P30: 36629.35187
G31: 24 | H31: 141.4140252 | I31: 19997.92653 | J31: 3393.936605 | K31: 21.29185763 | L31: 3010.967292 | M31: 3476.660473 | N31: 503781.7235 | O31: 41313.06325 | P31: 39588.97109
G32: 25 | H32: 141.1773911 | I32: 19931.05576 | J32: 3529.434778 | K32: 22.05790351 | L32: 3114.077271 | M32: 3617.956181 | N32: 523746.2146 | O32: 44774.74894 | P32: 42651.49337
G33: 26 | H33: 140.9327843 | I33: 19862.04969 | J33: 3664.252392 | K33: 22.83192206 | L33: 3217.766348 | M33: 3759.011269 | N33: 543642.7673 | O33: 48371.59252 | P33: 45817.41518
G34: 27 | H34: 140.678746 | I34: 19790.50957 | J34: 3798.326141 | K34: 23.61537216 | L34: 3322.180941 | M34: 3899.817034 | N34: 563469.047 | O34: 52102.88179 | P34: 49087.38882
G35: 28 | H35: 140.4139178 | I35: 19716.06831 | J35: 3931.589698 | K35: 24.4096121 | L35: 3427.449267 | M35: 4040.363366 | N35: 583222.3359 | O35: 55967.83971 | P35: 52462.20393
G36: 29 | H36: 140.1370389 | I36: 19638.38967 | J36: 4063.974128 | K36: 25.21590276 | L36: 3533.681946 | M36: 4180.638845 | N36: 602899.5649 | O36: 59965.62162 | P36: 55942.76953
G37: 30 | H37: 139.8469428 | I37: 19557.16742 | J37: 4195.408285 | K37: 26.0354106 | L37: 3640.972578 | M37: 4320.630835 | N37: 622497.3435 | O37: 64095.31283 | P37: 59530.0968
G38: 31 | H38: 139.5425544 | I38: 19472.1245 | J38: 4325.819188 | K38: 26.86921074 | L38: 3749.398302 | M38: 4460.325584 | N38: 642011.9894 | O38: 68355.92657 | P38: 63225.28223
G39: 32 | H39: 139.222887 | I39: 19383.01227 | J39: 4455.132385 | K39: 27.71828992 | L39: 3859.020345 | M39: 4599.708305 | N39: 661439.5578 | O39: 72746.40235 | P39: 67029.49156
G40: 33 | H40: 138.8870392 | I40: 19289.60967 | J40: 4583.272295 | K40: 28.58354946 | L40: 3969.884555 | M40: 4738.763268 | N40: 680775.8688 | O40: 77265.60469 | P40: 70943.94401
G41: 34 | H41: 138.5341923 | I41: 19191.72243 | J41: 4710.162538 | K41: 29.46580818 | L41: 4082.021936 | M41: 4877.473884 | N41: 700016.5348 | O41: 81912.32211 | P41: 74969.89725
G42: 35 | H42: 138.163607 | I42: 19089.1823 | J42: 4835.726245 | K42: 30.36580523 | L42: 4195.449179 | M42: 5015.822783 | N42: 719156.9872 | O42: 86685.2665 | P42: 79108.63281
G43: 36 | H43: 137.774621 | I43: 18981.8462 | J43: 4959.886358 | K43: 31.28420294 | L43: 4310.169204 | M43: 5153.791897 | N43: 738192.5014 | O43: 91583.0728 | P43: 83361.442
G44: 37 | H44: 137.3666462 | I44: 18869.59547 | J44: 5082.565908 | K44: 32.22158959 | L44: 4426.171695 | M44: 5291.362531 | N44: 757118.2223 | O44: 96604.29893 | P44: 87729.61245
G45: 38 | H45: 136.9391653 | I45: 18752.335 | J45: 5203.688283 | K45: 33.17848217 | L45: 4543.433655 | M45: 5428.515437 | N45: 775929.1875 | O45: 101747.426 | P45: 92214.41513
G46: 39 | H46: 136.4917302 | I46: 18629.99242 | J46: 5323.177478 | K46: 34.15532905 | L46: 4661.919958 | M46: 5565.230884 | N46: 794620.3512 | O46: 107010.8589 | P46: 96817.09194
G47: 40 | H47: 136.0239583 | I47: 18502.51724 | J47: 5440.958334 | K47: 35.15251268 | L47: 4781.58392 | M47: 5701.488729 | N47: 813186.606 | O47: 112392.9268 | P47: 101538.8439
G48: 41 | H48: 135.5355306 | I48: 18369.88006 | J48: 5556.956755 | K48: 36.17035216 | L48: 4902.367873 | M48: 5837.268473 | N48: 831622.8047 | O48: 117891.8844 | P48: 106380.8198
G49: 42 | H49: 135.0261887 | I49: 18232.07162 | J49: 5671.099924 | K49: 37.20910588 | L49: 5024.20375 | M49: 5972.549333 | N49: 849923.7805 | O49: 123505.9127 | P49: 111344.1056
G50: 43 | H50: 134.4957323 | I50: 18089.10201 | J50: 5783.31649 | K50: 38.26897398 | L50: 5147.013681 | M50: 6107.310293 | N50: 868084.3674 | O50: 129233.1209 | P50: 116429.7143
G51: 44 | H51: 133.9440171 | I51: 17940.99972 | J51: 5893.536754 | K51: 39.35010093 | L51: 5270.710593 | M51: 6241.530168 | N51: 886099.4182 | O51: 135071.5475 | P51: 121638.5764
G52: 45 | H52: 133.3709519 | I52: 17787.81081 | J52: 6001.692836 | K52: 40.45257791 | L52: 5395.198823 | M52: 6375.187653 | N52: 903963.8235 | O52: 141019.1623 | P52: 126971.5311
G53: 46 | H53: 132.7764963 | I53: 17629.59797 | J53: 6107.718829 | K53: 41.57644528 | L53: 5520.374733 | M53: 6508.261377 | N53: 921672.5279 | O53: 147073.8682 | P53: 132429.3179
G54: 47 | H54: 132.1606584 | I54: 17466.43963 | J54: 6211.550945 | K54: 42.72169492 | L54: 5646.12733 | M54: 6640.729954 | N54: 939220.5467 | O54: 153233.503 | P54: 138012.569
G55: 48 | H55: 131.5234925 | I55: 17298.42908 | J55: 6313.127641 | K55: 43.88827258 | L55: 5772.33889 | M55: 6772.572029 | N55: 956602.981 | O55: 159495.8423 | P55: 143721.8021
G56: 49 | H56: 130.8650967 | I56: 17125.67354 | J56: 6412.389739 | K56: 45.07608015 | L56: 5898.885587 | M56: 6903.766324 | N56: 973815.0323 | O56: 165858.601 | P56: 149557.4143
G57: 50 | H57: 130.1856107 | I57: 16948.29323 | J57: 6509.280534 | K57: 46.28497793 | L57: 6025.638117 | M57: 7034.291678 | N57: 990852.0157 | O57: 172319.4362 | P57: 155519.6762
G58: 51 | H58: 129.4852135 | I58: 16766.42052 | J58: 6603.74589 | K58: 47.51478684 | L58: 6152.46232 | M58: 7164.12709 | N58: 1007709.373 | O58: 178875.9494 | P58: 161608.7264
G59: 52 | H59: 128.7641215 | I59: 16580.199 | J59: 6695.73432 | K59: 48.76529059 | L59: 6279.219805 | M59: 7293.251757 | N59: 1024382.682 | O59: 185525.6895 | P59: 167824.5674
G60: 53 | H60: 128.0225861 | I60: 16389.78256 | J60: 6785.197064 | K60: 50.03623778 | L60: 6405.768559 | M60: 7421.645111 | N60: 1040867.673 | O60: 192266.1552 | P60: 174167.0616
G61: 54 | H61: 127.2608916 | I61: 16195.33454 | J61: 6872.088149 | K61: 51.327344 | L61: 6531.963563 | M61: 7549.28685 | N61: 1057160.232 | O61: 199094.7978 | P61: 180635.9277
G62: 55 | H62: 126.4793535 | I62: 15997.02686 | J62: 6956.364442 | K62: 52.63829391 | L62: 6657.657383 | M62: 7676.156973 | N62: 1073256.412 | O62: 206009.0241 | P62: 187230.7382
G63: 56 | H63: 125.678316 | I63: 15795.03911 | J63: 7037.985694 | K63: 53.9687432 | L63: 6782.70076 | M63: 7802.235807 | N63: 1089152.445 | O63: 213006.1991 | P63: 193950.9172
G64: 57 | H64: 124.8581504 | I64: 15589.55771 | J64: 7116.914571 | K64: 55.31832055 | L64: 6906.943186 | M64: 7927.504041 | N64: 1104844.744 | O64: 220083.6493 | P64: 200795.7392
G65: 58 | H65: 124.0192531 | I65: 15380.77513 | J65: 7193.116678 | K65: 56.68662961 | L65: 7030.233463 | M65: 8051.942742 | N65: 1120329.91 | O65: 227238.6649 | P65: 207764.3275
G66: 59 | H66: 123.1620436 | I66: 15168.88899 | J66: 7266.560575 | K66: 58.07325081 | L66: 7152.42025 | M66: 8175.533391 | N66: 1135604.742 | O66: 234468.5035 | P66: 214855.6544
G67: 60 | H67: 122.286963 | I67: 14954.10131 | J67: 7337.217778 | K67: 59.47774324 | L67: 7273.352585 | M67: 8298.257894 | N67: 1150666.237 | O67: 241770.3927 | P67: 222068.5408
G68: 61 | H68: 121.3944715 | I68: 14736.61771 | J68: 7405.062762 | K68: 60.89964646 | L68: 7392.880396 | M68: 8420.098611 | N68: 1165511.597 | O68: 249141.533 | P68: 229401.6573
G69: 62 | H69: 120.4850475 | I69: 14516.64667 | J69: 7470.072945 | K69: 62.33848222 | L69: 7510.854991 | M69: 8541.038371 | N69: 1180138.229 | O69: 256579.1008 | P69: 236853.525
G70: 63 | H70: 119.5591853 | I70: 14294.39878 | J70: 7532.228672 | K70: 63.79375621 | L70: 7627.129518 | M70: 8661.060487 | N70: 1194543.752 | O70: 264080.2516 | P70: 244422.5172
G71: 64 | H71: 118.6173935 | I71: 14070.08604 | J71: 7591.513184 | K71: 65.26495973 | L71: 7741.55941 | M71: 8780.148776 | N71: 1208725.994 | O71: 271642.1226 | P71: 252106.8617
G72: 65 | H72: =5.69046027653288E-11*G72^6 - 3.49697955151539E-08*G72^5 + 8.15900041971351E-06*G72^4 - 0.000866778446532379*G72^3 + 0.0355520817989827*G72^2 - 0.837734671605176*G72 + 150.584619638912 -> 117.6601937 | I72: =H72^2 -> 13843.92118 | J72: =H72*G72 -> 7647.91259 | K72: =-5.69046027746462E-11*G72^6 + 3.49697955193823E-08*G72^5 - 8.15900042105966E-06*G72^4 + 0.000866778447203842*G72^3 - 0.0355520819020967*G72^2 + 1.36714643651794*G72 - 0.584619091707282 -> 66.7515713 | L72: =H72*K72 -> 7854.002809 | M72: 8898.28757 | N72: 1222682.998 | O72: 279261.8354 | P72: 259904.6428
G73: =G72+G$5 -> 66 | H73: 116.6881184 | I73: 13616.11699 | J73: 7701.415817 | K73: 68.25305831 | L73: 7964.320952 | M73: =M72+0.5*(H73+H72)*G$5 -> 9015.461726 | N73: =N72+0.5*(I73+I72)*G$5 -> 1236413.017 | O73: =O72+0.5*(J73+J72)*G$5 -> 286936.4997 | P73: =P72+0.5*(L73+L72)*G$5 -> 267813.8047
G74: 67 | H74: 115.70171 | I74: 13386.8857 | J74: 7752.014571 | K74: 69.7688785 | L74: 8072.378548 | M74: 9131.65664 | N74: 1249914.518 | O74: 294663.2148 | P74: 275832.1544
G75: 68 | H75: 114.7015187 | I75: 13156.4384 | J75: 7799.703273 | K75: 71.29848155 | L75: 8178.044116 | M75: 9246.858255 | N75: 1263186.18 | O75: 302439.0738 | P75: 283957.3658
G76: 69 | H76: 113.6881016 | I76: 12924.98443 | J76: 7844.479007 | K76: 72.84131048 | L76: 8281.190303 | M76: 9361.053065 | N76: 1276226.892 | O76: 310261.1649 | P76: 292186.983
G77: 70 | H77: 112.6620206 | I77: 12692.7309 | J77: 7886.341445 | K77: 74.39680314 | L77: 8381.694172 | M77: 9474.228126 | N77: 1289035.749 | O77: 318126.5751 | P77: 300518.4252
G78: 71 | H78: 111.623842 | I78: 12459.8821 | J78: 7925.29278 | K78: 75.96439357 | L78: 8479.437464 | M78: 9586.371057 | N78: 1301612.056 | O78: 326032.3922 | P78: 308948.991
G79: 72 | H79: 110.574134 | I79: 12226.6391 | J79: 7961.337645 | K79: 77.54351335 | L79: 8574.306833 | M79: 9697.470045 | N79: 1313955.317 | O79: 333975.7075 | P79: 317475.8632
G80: 73 | H80: 109.5134662 | I80: 11993.19927 | J80: 7994.48303 | K80: 79.13359291 | L80: 8666.194049 | M80: 9807.513845 | N80: 1326065.236 | O80: 341953.6178 | P80: 326096.1136
G81: 74 | H81: 108.442408 | I81: 11759.75586 | J81: 8024.738194 | K81: 80.7340628 | L81: 8754.99618 | M81: 9916.491782 | N81: 1337941.713 | O81: 349963.2284 | P81: 334806.7087
G82: 75 | H82: 107.3615277 | I82: 11526.49763 | J82: 8052.114576 | K82: 82.34435491 | L82: 8840.615738 | M82: 10024.39375 | N82: 1349584.84 | O82: 358001.6548 | P82: 343604.5147
G83: 76 | H83: 106.2713907 | I83: 11293.60848 | J83: 8076.625691 | K83: 83.96390367 | L83: 8922.960809 | M83: 10131.21021 | N83: 1360994.893 | O83: 366066.0249 | P83: 352486.303
G84: 77 | H84: 105.1725589 | I84: 11061.26715 | J84: 8098.287037 | K84: 85.59214718 | L84: 9001.945143 | M84: 10236.93218 | N84: 1372172.331 | O84: 374153.4813 | P84: 361448.7559
G85: 78 | H85: 104.0655896 | I85: 10829.64693 | J85: 8117.115985 | K85: 87.22852831 | L85: 9077.488224 | M85: 10341.55126 | N85: 1383117.788 | O85: 382261.1828 | P85: 370488.4726
G86: 79 | H86: 102.9510338 | I86: 10598.91537 | J86: 8133.131674 | K86: 88.87249577 | L86: 9149.51532 | M86: 10445.05957 | N86: 1393832.069 | O86: 390386.3066 | P86: 379601.9744
G87: 80 | H87: 101.8294362 | I87: 10369.23408 | J87: 8146.354899 | K87: 90.52350515 | L87: 9217.957495 | M87: 10547.44981 | N87: 1404316.144 | O87: 398526.0499 | P87: 388785.7108
G88: 81 | H88: 100.7013333 | I88: 10140.75853 | J88: 8156.807997 | K88: 92.18101984 | L88: 9282.751603 | M88: 10648.71519 | N88: 1414571.14 | O88: 406677.6314 | P88: 398036.0654
G89: 82 | H89: 99.56725285 | I89: 9913.63784 | J89: 8164.514734 | K89: 93.84451205 | L89: 9343.84026 | M89: 10748.84948 | N89: 1424598.338 | O89: 414838.2927 | P89: 407349.3613
G90: 83 | H90: 98.42771302 | I90: 9688.014691 | J90: 8169.500181 | K90: 95.51346364 | L90: 9401.171789 | M90: 10847.84697 | N90: 1434399.165 | O90: 423005.3002 | P90: 416721.8673
G91: 84 | H91: 97.28322141 | I91: 9464.025168 | J91: 8171.790598 | K91: 97.18736701 | L91: 9454.700143 | M91: 10945.70243 | N91: 1443975.184 | O91: 431175.9456 | P91: 426149.8033
G92: 85 | H92: 96.13427426 | I92: 9241.798687 | J92: 8171.413312 | K92: 98.86572592 | L92: 9504.38481 | M92: 11042.41118 | N92: 1453328.096 | O92: 439347.5475 | P92: 435629.3458
G93: 86 | H93: 94.98135569 | I93: 9021.457928 | J93: 8168.396589 | K93: 100.5480563 | L93: 9550.190694 | M93: 11137.969 | N93: 1462459.725 | O93: 447517.4525 | P93: 445156.6335
G94: 87 | H94: 93.82493696 | I94: 8803.118795 | J94: 8162.769515 | K94: 102.2338867 | L94: 9592.087978 | M94: 11232.37214 | N94: 1471372.013 | O94: 455683.0355 | P94: 454727.7728
G95: 88 | H95: 92.66547578 | I95: 8586.890401 | J95: 8154.561868 | K95: 103.9227597 | L95: 9630.05197 | M95: 11325.61735 | N95: 1480067.018 | O95: 463841.7012 | P95: 464338.8428
G96: 89 | H96: 91.50341564 | I96: 8372.875074 | J96: 8143.803992 | K96: 105.6142316 | L96: 9664.062929 | M96: 11417.70179 | N96: 1488546.9 | O96: 471990.8842 | P96: 473985.9003
G97: 90 | H97: 90.33918524 | I97: 8161.16839 | J97: 8130.526672 | K97: 107.3078737 | L97: 9694.105883 | M97: 11508.62309 | N97: 1496813.922 | O97: 480128.0495 | P97: 483664.9847
G98: 91 | H98: 89.17319787 | I98: 7951.859218 | J98: 8114.761006 | K98: 109.0032729 | L98: 9720.17042 | M98: 11598.37929 | N98: 1504870.436 | O98: 488250.6933 | P98: 493372.1228
G99: 92 | H99: 88.0058509 | I99: 7745.029793 | J99: 8096.538283 | K99: 110.7000316 | L99: 9742.250475 | M99: 11686.96881 | N99: 1512718.88 | O99: 496356.343 | P99: 503103.3333
G100: 93 | H100: 86.83752531 | I100: 7540.755802 | J100: 8075.889854 | K100: 112.3977689 | L100: 9760.344106 | M100: 11774.3905 | N100: 1520361.773 | O100: 504442.557 | P100: 512854.6306
G101: 94 | H101: 85.66858522 | I101: 7339.106494 | J101: 8052.847011 | K101: 114.0961208 | L101: 9774.453248 | M101: 11860.64355 | N101: 1527801.704 | O101: 512506.9255 | P101: 522622.0292
G102: 95 | H102: 84.49937749 | I102: 7140.144796 | J102: 8027.440862 | K102: 115.7947403 | L102: 9784.583471 | M102: 11945.72754 | N102: 1535041.33 | O102: 520547.0694 | P102: 532401.5476
G103: 96 | H103: 83.33023135 | I103: 6943.927457 | J103: 7999.70221 | K103: 117.4932982 | L103: 9790.74372 | M103: 12029.64234 | N103: 1542083.366 | O103: 528560.6409 | P103: 542189.2112
G104: 97 | H104: 82.16145809 | I104: 6750.505196 | J104: 7969.661435 | K104: 119.1914832 | L104: 9792.946052 | M104: 12112.38818 | N104: 1548930.583 | O104: 536545.3228 | P104: 551981.0561
G105: 98 | H105: 80.99335076 | I105: 6559.922868 | J105: 7937.348375 | K105: 120.8890023 | L105: 9791.205366 | M105: 12193.96559 | N105: 1555585.797 | O105: 544498.8277 | P105: 561773.1318
G106: 99 | H106: 79.82618394 | I106: 6372.219642 | J106: 7902.79221 | K106: 122.5855809 | L106: 9785.539127 | M106: 12274.37536 | N106: 1562051.868 | O106: 552418.898 | P106: 571561.504
G107: 100 | H107: 78.66021352 | I107: 6187.429191 | J107: 7866.021352 | K107: 124.2809631 | L107: 9775.967091 | M107: 12353.61856 | N107: 1568331.692 | O107: 560303.3047 | P107: 581342.2571
G108: 101 | H108: 77.49567657 | I108: 6005.579886 | J108: 7827.063333 | K108: 125.9749118 | L108: 9762.511018 | M108: 12431.6965 | N108: 1574428.197 | O108: 568149.8471 | P108: 591111.4962
G109: 102 | H109: 76.33279118 | I109: 5826.695009 | J109: 7785.9447 | K109: 127.6672089 | L109: 9745.194399 | M109: 12508.61073 | N109: 1580344.334 | O109: 575956.3511 | P109: 600865.3489
G110: 103 | H110: 75.17175642 | I110: 5650.792963 | J110: 7742.690911 | K110: 129.3576554 | L110: 9724.042165 | M110: 12584.36301 | N110: 1586083.078 | O110: 583720.6689 | P110: 610599.9672
G111: 104 | H111: 74.01275227 | I111: 5477.887499 | J111: 7697.326237 | K111: 131.0460713 | L111: 9699.080415 | M111: 12658.95526 | N111: 1591647.418 | O111: 591440.6775 | P111: 620311.5285
G112: 105 | H112: 72.85593967 | I112: 5307.987945 | J112: 7649.873666 | K112: 132.7322957 | L112: 9670.336129 | M112: 12732.38961 | N112: 1597040.356 | O112: 599114.2774 | P112: 629996.2368
G113: 106 | H113: 71.7014605 | I113: 5141.099438 | J113: 7600.354813 | K113: 134.4161866 | L113: 9637.836897 | M113: 12804.66831 | N113: 1602264.9 | O113: 606739.3917 | P113: 639650.3233
G114: 107 | H114: 70.5494377 | I114: 4977.22316 | J114: 7548.789834 | K114: 136.0976212 | L114: 9601.610648 | M114: 12875.79376 | N114: 1607324.061 | O114: 614313.964 | P114: 649270.047
G115: 108 | H115: 69.39997542 | I115: 4816.356588 | J115: 7495.197345 | K115: 137.7764952 | L115: 9561.685383 | M115: 12945.76846 | N115: 1612220.851 | O115: 621835.9576 | P115: 658851.6951
G116: 109 | H116: 68.25315913 | I116: 4658.493731 | J116: 7439.594345 | K116: 139.4527233 | L116: 9518.088914 | M116: 13014.59503 | N116: 1616958.276 | O116: 629303.3534 | P116: 668391.5822
G117: 110 | H117: 67.10905587 | I117: 4503.62538 | J117: 7381.996146 | K117: 141.1262383 | L117: 9470.848612 | M117: 13082.27614 | N117: 1621539.336 | O117: 636714.1487 | P117: 677886.051
G118: 111 | H118: 65.96771451 | I118: 4351.739357 | J118: 7322.41631 | K118: 142.7969914 | L118: 9419.991164 | M118: 13148.81452 | N118: 1625967.018 | O118: 644066.3549 | P118: 687331.4709
G119: 112 | H119: 64.82916598 | I119: 4202.820761 | J119: 7260.86659 | K119: 144.4649517 | L119: 9365.542334 | M119: 13214.21296 | N119: 1630244.298 | O119: 651357.9964 | P119: 696724.2376
G120: 113 | H120: 63.69342366 | I120: 4056.852218 | J120: 7197.356874 | K120: 146.1301058 | L120: 9307.526739 | M120: 13278.47426 | N120: 1634374.135 | O120: 658587.1081 | P120: 706060.7721
G121: 114 | H121: 62.56048374 | I121: 3913.814126 | J121: 7131.895146 | K121: 147.7924575 | L121: 9245.967634 | M121: 13341.60121 | N121: 1638359.468 | O121: 665751.7341 | P121: 715337.5193
G122: 115 | H122: 61.4303256 | I122: 3773.684903 | J122: 7064.487444 | K122: 149.4520274 | L122: 9180.886705 | M122: 13403.59662 | N122: 1642203.217 | O122: 672849.9254 | P122: 724550.9465
G123: 116 | H123: 60.30291231 | I123: 3636.441233 | J123: 6995.137828 | K123: 151.1088525 | L123: 9112.303878 | M123: 13464.46324 | N123: 1645908.28 | O123: 679879.738 | P123: 733697.5418
G124: 117 | H124: 59.17819108 | I124: 3502.058299 | J124: 6923.848356 | K124: 152.7629854 | L124: 9040.237142 | M124: 13524.20379 | N124: 1649477.53 | O124: 686839.2311 | P124: 742773.8123
G125: 118 | H125: 58.05609384 | I125: 3370.510032 | J125: 6850.619073 | K125: 154.4144944 | L125: 8964.70238 | M125: 13582.82093 | N125: 1652913.814 | O125: 693726.4648 | P125: 751776.2821
G126: 119 | H126: 56.93653778 | I126: 3241.769335 | J126: 6775.447996 | K126: 156.0634623 | L126: 8885.713216 | M126: 13640.31725 | N126: 1656219.954 | O126: 700539.4984 | P126: 760701.4899
G127: 120 | H127: 55.819426 | I127: 3115.808319 | J127: 6698.33112 | K127: 157.7099858 | L127: 8803.280882 | M127: 13696.69523 | N127: 1659398.743 | O127: 707276.3879 | P127: 769545.9869
G128: 121 | H128: 54.70464812 | I128: 2992.598526 | J128: 6619.262423 | K128: 159.3541755 | L128: 8717.414095 | M128: 13751.95727 | N128: 1662452.946 | O128: 713935.1847 | P128: 778306.3344
G129: 122 | H129: 53.59208105 | I129: 2872.111151 | J129: 6538.233888 | K129: 160.9961543 | L129: 8628.118949 | M129: 13806.10563 | N129: 1665385.301 | O129: 720513.9329 | P129: 786979.1009
G130: 123 | H130: 52.48158967 | I130: 2754.317254 | J130: 6455.235529 | K130: 162.6360574 | L130: 8535.398831 | M130: 13859.14247 | N130: 1668198.515 | O130: 727010.6676 | P130: 795560.8598
G131: 124 | H131: 51.37302763 | I131: 2639.187967 | J131: 6370.255426 | K131: 164.2740312 | L131: 8439.254345 | M131: 13911.06977 | N131: 1670895.268 | O131: 733423.413 | P131: 804048.1864
G132: 125 | H132: 50.26623818 | I132: 2526.694701 | J132: 6283.279772 | K132: 165.9102324 | L132: 8339.683261 | M132: 13961.88941 | N132: 1673478.209 | O132: 739750.1806 | P132: 812437.6552
G133: 126 | H133: 49.16105504 | I133: 2416.809333 | J133: 6194.292935 | K133: 167.5448273 | L133: 8236.680479 | M133: 14011.60305 | N133: 1675949.961 | O133: 745988.967 | P133: 820725.8371
G134: 127 | H134: 48.05730329 | I134: 2309.5044 | J134: 6103.277518 | K134: 169.1779909 | L134: 8130.238017 | M134: 14060.21223 | N134: 1678313.118 | O134: 752137.7522 | P134: 828909.2963
G135: 128 | H135: 46.95480031 | I135: 2204.753272 | J135: 6010.21444 | K135: 170.8099056 | L135: 8020.345009 | M135: 14107.71828 | N135: 1680570.247 | O135: 758194.4982 | P135: 836984.5878
G136: 129 | H136: =5.69046027653288E-11*G136^6 - 3.49697955151539E-08*G136^5 + 8.15900041971351E-06*G136^4 - 0.000866778446532379*G136^3 + 0.0355520817989827*G136^2 - 0.837734671605176*G136 + 150.584619638912 -> 45.85335679 | I136: =H136^2 -> 2102.530329 | J136: =H136*G136 -> 5915.083025 | K136: =-5.69046027746462E-11*G136^6 + 3.49697955193823E-08*G136^5 - 8.15900042105966E-06*G136^4 + 0.000866778447203842*G136^3 - 0.0355520819020967*G136^2 + 1.36714643651794*G136 - 0.584619091707282 -> 172.4407609 | L136: =H136*K136 -> 7906.987734 | M136: 14154.12236 | N136: 1682723.889 | O136: 764157.1469 | P136: 844948.2542
G137: =G136+G$5 -> 130 | H137: 44.75277772 | I137: 2002.811114 | J137: 5817.861104 | K137: 174.0707517 | L137: 7790.14966 | M137: =M136+0.5*(H137+H136)*G$5 -> 14199.42543 | N137: =N136+0.5*(I137+I136)*G$5 -> 1684776.559 | O137: =O136+0.5*(J137+J136)*G$5 -> 770023.619 | P137: =P136+0.5*(L137+L136)*G$5 -> 852796.8229
G138: 131 | H138: 43.65286352 | I138: 1905.572494 | J138: 5718.525122 | K138: 175.7000777 | L138: 7669.811512 | M138: 14243.62825 | N138: 1686730.751 | O138: 775791.8121 | P138: 860526.8035
G139: 132 | H139: 42.55341108 | I139: 1810.792795 | J139: 5617.050263 | K139: 177.3289419 | L139: 7545.951362 | M139: 14286.73139 | N139: 1688588.934 | O139: 781459.5998 | P139: 868134.6849
G140: 133 | H140: 41.45421496 | I140: 1718.451938 | J140: 5513.41059 | K140: 178.9575498 | L140: 7418.544737 | M140: 14328.7352 | N140: 1690353.556 | O140: 787024.8302 | P140: 875616.933
G141: 134 | H141: 40.35506855 | I141: 1628.531558 | J141: 5407.579186 | K141: 180.586108 | L141: 7287.564765 | M141: 14369.63984 | N141: 1692027.048 | O141: 792485.3251 | P141: 882969.9877
G142: 135 | H142: 39.25576532 | I142: 1541.015111 | J142: 5299.528318 | K142: 182.214823 | L142: 7152.982327 | M142: 14409.44526 | N142: 1693611.821 | O142: 797838.8789 | P142: 890190.2613
G143: 136 | H143: 38.15610009 | I143: 1455.887974 | J143: 5189.229613 | K143: 183.8438999 | L143: 7014.766248 | M143: 14448.15119 | N143: 1695110.273 | O143: 803083.2578 | P143: 897274.1356
G144: 137 | H144: 37.05587035 | I144: 1373.137528 | J144: 5076.654238 | K144: 185.4735414 | L144: 6872.883506 | M144: 14485.75718 | N144: 1696524.786 | O144: 808216.1998 | P144: 904217.9604
G145: 138 | H145: 35.95487761 | I145: 1292.753224 | J145: 4961.77311 | K145: 187.103946 | L145: 6727.299476 | M145: 14522.26255 | N145: 1697857.731 | O145: 813235.4134 | P145: 911018.0519
G146: 139 | H146: 34.85292876 | I146: 1214.726643 | J146: 4844.557098 | K146: 188.7353066 | L146: 6577.978195 | M146: 14557.66645 | N146: 1699111.471 | O146: 818138.5785 | P146: 917670.6908
G147: 140 | H147: 33.7498376 | I147: 1139.051538 | J147: 4724.977264 | K147: 190.3678095 | L147: 6424.882655 | M147: 14591.96784 | N147: 1700288.36 | O147: 822923.3457 | P147: 924172.1212
G148: 141 | H148: 32.64542621 | I148: 1065.723852 | J148: 4603.005096 | K148: 192.0016327 | L148: 6267.975131 | M148: 14625.16547 | N148: 1701390.748 | O148: 827587.3369 | P148: 930518.5501
G149: 142 | H149: 31.53952655 | I149: 994.7417347 | J149: 4478.612769 | K149: 193.6369441 | L149: 6107.217538 | M149: 14657.25795 | N149: 1702420.981 | O149: 832128.1458 | P149: 936706.1464
G150: 143 | H150: 30.43198196 | I150: 926.1055261 | J150: 4351.773421 | K150: 195.2739004 | L150: 5942.571816 | M150: 14688.2437 | N150: 1703381.404 | O150: 836543.3389 | P150: 942731.0411
G151: 144 | H151: 29.32264883 | I151: 859.8177342 | J151: 4222.461431 | K151: 196.9126453 | L151: 5774.000349 | M151: 14718.12102 | N151: 1704274.366 | O151: 840830.4564 | P151: 948589.3272
G152: 145 | H152: 28.21139816 | I152: 795.8829863 | J152: 4090.652734 | K152: 198.5533078 | L152: 5601.466422 | M152: 14746.88804 | N152: 1705102.216 | O152: 844987.0134 | P152: 954277.0606
G153: 146 | H153: 27.09811732 | I153: 734.3079624 | J153: 3956.325129 | K153: 200.1960004 | L153: 5424.934706 | M153: 14774.5428 | N153: 1705867.312 | O153: 849010.5024 | P153: 959790.2611
G154: 147 | H154: 25.98271172 | I154: 675.1013084 | J154: 3819.458623 | K154: 201.8408177 | L154: 5244.371781 | M154: 14801.08321 | N154: 1706572.016 | O154: 852898.3942 | P154: 965124.9144
G155: 148 | H155: 24.8651066 | I155: 618.2735263 | J155: 3680.035777 | K155: 203.4878346 | L155: 5059.7467 | M155: 14826.50712 | N155: 1707218.704 | O155: 856648.1414 | P155: 970276.9736
G156: 149 | H156: 23.74524883 | I156: 563.8368419 | J156: 3538.042075 | K156: 205.1371042 | L156: 4871.031582 | M156: 14850.8123 | N156: 1707809.759 | O156: 860257.1804 | P156: 975242.3627
G157: 150 | H157: 22.62310875 | I157: 511.8050495 | J157: 3393.466313 | K157: 206.788656 | L157: 4678.202253 | M157: 14873.99648 | N157: 1708347.58 | O157: 863722.9346 | P157: 980016.9797
G158: 151 | H158: 21.49868208 | I158: 462.1933311 | J158: 3246.300994 | K158: 208.4424945 | L158: 4481.23892 | M158: 14896.05737 | N158: 1708834.579 | O158: 867042.8182 | P158: 984596.7002
G159: 152 | H159: 20.37199182 | I159: 415.0180507 | J159: 3096.542756 | K159: 210.0985965 | L159: 4280.126889 | M159: 14916.99271 | N159: 1709273.185 | O159: 870214.2401 | P159: 988977.3832
G160: 153 | H160: 19.24309024 | I160: 370.2965219 | J160: 2944.192807 | K160: 211.7569098 | L160: 4074.857325 | M160: 14936.80025 | N160: 1709665.842 | O160: 873234.6079 | P160: 993154.8753
G161: 154 | H161: 18.11206088 | I161: 328.0467494 | J161: 2789.257376 | K161: 213.417351 | L161: 3865.428054 | M161: 14955.47783 | N161: 1710015.014 | O161: 876101.333 | P161: 997125.0179
G162: 155 | H162: 16.97902062 | I162: 288.2871412 | J162: 2631.748196 | K162: 215.079803 | L162: 3651.84441 | M162: 14973.02337 | N162: 1710323.181 | O162: 878811.8357 | P162: 1000883.654
G163: 156 | H163: 15.84412174 | I163: 251.0361936 | J163: 2471.682991 | K163: 216.7441136 | L163: 3434.120122 | M163: 14989.43494 | N163: 1710592.842 | O163: 881363.5513 | P163: 1004426.636
G164: 157 | H164: 14.70755408 | I164: 216.312147 | J164: 2309.08599 | K164: 218.4100931 | L164: 3212.278255 | M164: 15004.71078 | N164: 1710826.516 | O164: 883753.9358 | P164: 1007749.836
G165: 158 | H165: 13.56954721 | I165: 184.1326114 | J165: 2143.988459 | K165: 220.0775117 | L165: 2986.352184 | M165: 15018.84933 | N165: 1711026.739 | O165: 885980.4731 | P165: 1010849.151
G166: 159 | H166: 12.43037264 | I166: 154.5141639 | J166: 1976.42925 | K166: 221.746098 | L166: 2756.38663 | M166: 15031.84929 | N166: 1711196.062 | O166: 888040.6819 | P166: 1013720.52
G167: 160 | H167: 11.29034608 | I167: 127.4719146 | J167: 1806.455373 | K167: 223.4155364 | L167: 2522.438726 | M167: 15043.70965 | N167: 1711337.055 | O167: 889932.1242 | P167: 1016359.933
G168: 161 | H168: 10.14982974 | I168: 103.0190438 | J168: 1634.122588 | K168: 225.0854645 | L168: 2284.579142 | M168: 15054.42973 | N168: 1711452.301 | O168: 891652.4132 | P168: 1018763.442
G169: 162 | H169: 9.009234664 | I169: 81.16630923 | J169: 1459.496016 | K169: 226.7554713 | L169: 2042.893252 | M169: 15064.00927 | N169: 1711544.393 | O169: 893199.2225 | P169: 1020927.178
G170: 163 | H170: 7.869023105 | I170: 61.92152463 | J170: 1282.650766 | K170: 228.4250947 | L170: 1797.482348 | M170: 15072.4484 | N170: 1711615.937 | O170: 894570.2959 | P170: 1022847.366
G171: 164 | H171: 6.72971096 | I171: 45.2890096 | J171: 1103.672597 | K171: 230.0938186 | L171: 1548.464893 | M171: 15079.74776 | N171: 1711669.543 | O171: 895763.4576 | P171: 1024520.339
G172: 165 | H172: 5.591870218 | I172: 31.26901253 | J172: 922.658586 | K172: 231.7610711 | L172: 1295.977831 | M172: 15085.90855 | N172: 1711707.822 | O172: 896776.6232 | P172: 1025942.561
G173: 166 | H173: 4.45613147 | I173: 19.85710768 | J173: 739.717824 | K173: 233.4262216 | L173: 1040.177932 | M173: 15090.93255 | N173: 1711733.385 | O173: 897607.8114 | P173: 1027110.639
G174: 167 | H174: 3.323186449 | I174: 11.04356818 | J174: 554.972137 | K174: 235.0885784 | L174: 781.2431781 | M174: 15094.82221 | N174: 1711748.835 | O174: 898255.1564 | P174: 1028021.349
G175: 168 | H175: 2.193790616 | I175: 4.812717266 | J175: 368.5568235 | K175: 236.747386 | L175: 519.3741937 | M175: 15097.5807 | N175: 1711756.763 | O175: 898716.9208 | P175: 1028671.658
G176: 169 | H176: 1.068765783 | I176: 1.142260298 | J176: 180.6214173 | K176: 238.4018226 | L176: 254.7957105 | M176: 15099.21198 | N176: 1711759.741 | O176: 898991.51 | P176: 1029058.743
G177: 170 | H177: -0.0509972183 | I177: 0.002600716274 | J177: -8.669527111 | K177: 240.0509974 | L177: -12.24193312 | M177: 15099.72086 | N177: 1711760.313 | O177: 899077.4859 | P177: 1029180.02
